Cogmind - Beta 16 @@@ ROGUE MODE // 2025.11.13 @ 23:48:10 Player: jumpy Result: Destroyed by P-70 Sage with High-powered Shock Rifle Performance ------------- Evolutions (6) 3000 Regions Visited (24) 4800 Robots Destroyed (253) 1265 Value Destroyed (12548) 12548 Prototype IDs (8) 160 Alien Tech Used (0) 0 Bonus (9731) 9731 TOTAL SCORE: 31504 Bonus ------- High Alert Combat Kills 2688 Follower Combat Kills 1924 Entered Garrisons 1400 Used RIF Installer 3500 A7 Reached Mainframe 300 Friendly Fire -81 Cogmind --------- Core Integrity 0/1150 Matter 38/300 Energy 170/170 System Corruption 13% Temperature Cool (0) Movement Flying (40) Location -4/Upper Caves Parts ------- > --- POWER (1) -------- Light Antimatter Reactor > --- PROPULSION (4) --- Nuclear Pulse Array > --- UTILITY (11) ----- Enhanced Optical Array Advanced Signal Interpreter Advanced Targeting Computer Advanced Targeting Computer Improved Melee Analysis Suite Advanced Melee Analysis Suite Core Analyzer Relay Coupler [Grunt] (47) Relay Coupler [Sentry] (34) > --- WEAPON (3) ------- (None) > --- INVENTORY (5) ---- Long-range Sensor Array Improved Remote Datajack Force Lance Peak State ------------ > --- POWER ------------ Quantum Reactor > --- PROPULSION ------- Armored Medium Treads Armored Medium Treads Heavy Treads > --- UTILITY ---------- High-capacity Storage Unit Advanced Targeting Computer Advanced Targeting Computer Advanced Target Analyzer Core Analyzer Core Analyzer Centrium Medium Armor Plating Centrium Medium Armor Plating Relay Coupler [Grunt] > --- WEAPON ----------- KE Penetrator KE Penetrator Railgun > --- INVENTORY -------- Particle Reactor Particle Reactor Medium Treads Medium Treads Medium Treads Medium Treads Medium Treads Improved Medium Treads Armored Medium Treads Advanced Heat Sink Centrium Medium Armor Plating Authchip [R/NC] Relay Coupler [NC] Relay Coupler [Sentry] Gauss Rifle Railgun Advanced KE Penetrator Heavy Rocket Launcher Improved Remote Datajack Plasma Cutter [Rating: 105] Favorites ----------- Power Neutrino Core Engine Reinforced Ion Engine Power Core Neutrino Core Reactor Particle Reactor Propulsion Carbon-fiber Leg Treads Armored Treads Leg Carbon-fiber Leg Hover Unit Gravmag Array Flight Unit Nuclear Pulse Array Utility Core Analyzer Device Advanced Shield Generator Storage High-capacity Storage Unit Processor Core Analyzer Hackware Relay Coupler [Grunt] Protection Improved Medium Armor Plating Weapon Gauss Rifle Energy Gun Medium Laser Energy Cannon Heavy Disruptor Cannon Ballistic Gun Gauss Rifle Ballistic Cannon Gauss Cannon Launcher Heavy Rocket Launcher Special Weapon Remote Datajack Slashing Weapon Great Axe Piercing Weapon Force Lance Build | -11 -10 -9 -8 -8 -8 -8 -7 -7 -7 -7 -6 -6 -5 -5 -5 -5 -5 -5 -5 -5 -4 -4 -4 -4 ------- Run | Yrd Mat Mat Mat Gar Mat Gar Fac Gar Fac Gar Fac Gar Fac Was Fac Gar Ext Cet Arc Hub Fac Gar Fac Upp Slots Evolved 12 | . . 2 2 . . . 2 . . . 2 . 2 . . . . . . . 2 . . . Power . | . . . . . . . . . . . . . . . . . . . . . . . . . Propulsion 2 | . . 1 1 . . . . . . . . . . . . . . . . . . . . . Utility 9 | . . 1 . . . . 2 . . . 2 . 2 . . . . . . . 2 . . . Weapon 1 | . . . 1 . . . . . . . . . . . . . . . . . . . . . Parts Attached 201 | 7 7 12 14 19 . 10 3 23 5 18 6 1 8 3 2 1 7 4 2 21 5 6 15 2 Power 21 | 1 . 2 2 1 . 3 . 1 . 3 . 1 1 . . . 1 1 . 1 . 1 2 . Engine 9 | 1 . 2 . 1 . 1 . 1 . 2 . 1 . . . . . . . . . . . . Core 7 | . . . 2 . . 2 . . . 1 . . 1 . . . 1 . . . . . . . Reactor 5 | . . . . . . . . . . . . . . . . . . 1 . 1 . 1 2 . Propulsion 55 | 2 1 3 7 6 . 4 . 6 4 5 2 . . 2 . . . . . 8 1 1 3 . Treads 23 | . . . . . . . . . 4 5 2 . . 2 . . . . . 8 1 1 . . Leg 29 | 2 1 3 7 6 . 4 . 6 . . . . . . . . . . . . . . . . Wheel . | . . . . . . . . . . . . . . . . . . . . . . . . . Hover 1 | . . . . . . . . . . . . . . . . . . . . . . . 1 . Flight 2 | . . . . . . . . . . . . . . . . . . . . . . . 2 . Utility 63 | 2 2 2 2 4 . . 1 7 1 4 4 . 6 . 1 . 2 1 1 8 4 2 7 2 Device 13 | 1 . 2 . . . . . 2 1 1 . . . . . . . . . 1 1 1 3 . Storage 5 | 1 2 . . 1 . . 1 . . . . . . . . . . . . . . . . . Processor 20 | . . . . 2 . . . 2 . 1 3 . 5 . . . . . 1 1 2 . 3 . Hackware 11 | . . . . . . . . 1 . . 1 . . . 1 . 1 . . 3 . 1 1 2 Protection 14 | . . . 2 1 . . . 2 . 2 . . 1 . . . 1 1 . 3 1 . . . Artifact . | . . . . . . . . . . . . . . . . . . . . . . . . . Weapon 62 | 2 4 5 3 8 . 3 2 9 . 6 . . 1 1 1 1 4 2 1 4 . 2 3 . Energy Gun 8 | . . 2 . 1 . 1 . 2 . . . . . . . . . . . . . 2 . . Energy Cannon 1 | . . . . . . . . . . . . . . . . . . . . . . . 1 . Ballistic Gun 39 | 2 3 3 3 6 . 1 1 2 . 4 . . 1 . 1 1 4 2 1 3 . . 1 . Ballistic Cannon 5 | . . . . . . . 1 2 . 2 . . . . . . . . . . . . . . Launcher 2 | . 1 . . . . . . 1 . . . . . . . . . . . . . . . . Special Weapon 5 | . . . . 1 . 1 . 1 . . . . . 1 . . . . . 1 . . . . Impact Weapon . | . . . . . . . . . . . . . . . . . . . . . . . . . Slashing Weapon 1 | . . . . . . . . 1 . . . . . . . . . . . . . . . . Piercing Weapon 1 | . . . . . . . . . . . . . . . . . . . . . . . 1 . Special Melee Weapon . | . . . . . . . . . . . . . . . . . . . . . . . . . Unidentified Prototypes 4 | . . 1 1 . . . . . . . . . . . . . . 2 . . . . . . Corrupted Parts 2 | . . . . . . . . . . . . . . . . . 1 . . . . . 1 . System Corruption 10 | . . . . . . . . . . . . . . . . . 9 . . . . . 1 . Parts Lost 70 | . . 6 1 7 . 3 1 6 . 6 . . . . . . 2 . 1 19 . 7 11 . Power 10 | . . 1 1 1 . 1 . 1 . 1 . . . . . . 1 . . 1 . 1 1 . Propulsion 19 | . . 3 . . . 1 . 3 . 2 . . . . . . . . 1 5 . 2 2 . Utility 21 | . . 1 . 3 . . . . . 2 . . . . . . 1 . . 8 . 2 4 . Weapon 20 | . . 1 . 3 . 1 1 2 . 1 . . . . . . . . . 5 . 2 4 . Highest Loss Streak 11 | . . 3 1 2 . 2 1 2 . 2 . . . . . . 1 . 1 11 . 4 4 . To Critical Strikes . | . . . . . . . . . . . . . . . . . . . . . . . . . Average Backups 17 | 3 9 13 18 17 20 19 18 19 20 19 19 19 19 20 19 19 19 19 19 17 7 9 8 3 Power 1 | . 1 1 1 1 2 1 2 1 1 1 2 2 2 2 2 2 1 2 2 1 1 1 1 . Propulsion 2 | 1 3 1 1 3 6 4 3 2 . 2 . 1 1 1 2 2 2 2 2 3 . . . . Utility 7 | . 3 5 8 8 6 7 8 10 12 11 10 10 9 9 8 8 7 8 8 6 3 4 4 1 Weapon 3 | 1 2 4 5 2 5 4 3 3 4 3 5 5 5 5 5 5 6 5 5 3 1 1 . 1 Tool/Special . | . . . . . . . . . . . . . . . . . . . . . . . . . Unused Backups 30 | . 1 2 3 . . 2 1 3 . 3 . 1 2 1 . . 1 1 2 1 . . 5 1 Power 6 | . . . . . . . . . . 1 . 1 1 . . . 1 1 1 . . . . . Propulsion 5 | . 1 . 1 . . 1 . . . . . . . . . . . . . . . . 2 . Utility 11 | . . 2 . . . 1 . 3 . 1 . . . 1 . . . . . . . . 3 . Weapon 7 | . . . 2 . . . 1 . . 1 . . 1 . . . . . 1 1 . . . . Tool/Special 1 | . . . . . . . . . . . . . . . . . . . . . . . . 1 Average Slot Usage (%) 91 | . 100 87 99 97 100 96 84 93 99 96 91 100 99 97 88 88 87 88 92 88 69 68 54 56 Engine 4 | . 14 10 3 7 9 6 . 3 7 5 6 6 2 . . . . . . . . . . . Core 2 | . . . 5 1 . 2 7 3 . 1 . . 2 5 5 5 4 1 . . . . . . Treads 9 | . . . . . . . . . 4 29 26 26 23 20 11 11 11 11 15 18 19 10 4 . Leg 16 | . 28 31 36 35 36 35 30 29 25 . . . . . . . . . . . . . . . Device 5 | . 14 13 10 5 . . . 5 7 4 . 6 5 5 5 5 4 5 5 . 2 8 6 . Storage 7 | . 14 11 9 9 9 9 7 7 7 7 6 6 5 5 5 5 5 5 5 5 5 5 2 . Processor 18 | . . . . 4 18 18 15 15 15 19 23 26 34 35 35 35 35 35 35 29 19 26 30 36 Protection 4 | . . . 6 5 . . . 3 7 6 6 6 5 5 5 5 4 5 5 8 6 3 . . Energy Gun 1 | . . 10 . 3 . . . 2 . . . . . . . . . . . . . 5 3 . Ballistic Gun 15 | . 27 10 26 22 27 23 23 15 . 3 20 19 17 15 17 17 16 16 17 14 10 1 . . Ballistic Cannon 1 | . . . . . . . . 2 15 12 . . . . . . . . . . . . . . Peak Build Rating 105 | 7 8 15 33 40 40 45 42 53 52 52 58 60 73 85 85 87 91 102 100 105 92 92 83 57 Average Rating 51 | 5 7 11 23 31 40 41 40 48 51 46 49 59 71 76 84 85 87 98 98 91 73 73 55 56 On Entrance 55 | . 7 8 15 33 40 40 39 41 52 51 46 58 60 73 85 85 87 91 100 100 63 92 71 50 Avg Prop Armor Cover (%) . | . . . . . . . . . . . . . . . . . . . . . . . . . Naked Turns . | . . . . . . . . . . . . . . . . . . . . . . . . . Heaviest Build 97 | 14 48 51 64 67 62 62 56 73 72 75 80 80 80 78 78 79 81 88 88 90 97 97 81 12 Greatest Support 140 | 20 20 30 60 60 54 63 63 69 80 80 90 90 90 140 140 140 140 140 140 130 126 126 93 13 Greatest Overweight (x) 3 | . 2 2 1 1 1 2 . 1 3 1 . . . . . . . . . 1 . . 2 . Average Overweight (x) . | . . 1 1 . 1 . . . . . . . . . . . . . . . . . . . Largest Inventory Capacity 20 | 8 20 20 20 20 20 20 20 20 20 20 20 20 20 20 20 20 20 20 20 20 20 20 20 5 Average Capacity 19 | 7 12 20 20 20 20 20 20 20 20 20 20 20 20 20 20 20 20 20 20 20 20 20 11 5 Most Carried 20 | 7 11 16 20 20 20 20 20 20 20 20 20 20 20 20 20 20 20 20 20 20 9 12 13 5 Average Carried 17 | 4 9 13 18 16 20 19 18 19 19 19 19 19 19 19 19 19 19 19 19 17 7 9 8 3 Final Capacity 20 | 8 20 20 20 20 20 20 20 20 20 20 20 20 20 20 20 20 20 20 20 20 20 20 5 5 Final Carried 20 | 7 11 16 20 20 20 19 19 20 20 19 19 20 20 20 19 20 20 20 20 7 7 11 5 3 Class Distribution -------------------- 38% | Scavenger-Gunner 16% | Bothacker-Gunner 15% | Scavenger-Mutant 9% | Tank 8% | Mutant 4% | Scavenger-Tank Dominant Class ---------------- Mutant | -10/Materials Mutant | -9/Materials Scavenger-Tank | -8/Materials Tank | -8/Garrison Scavenger-Gunner | -8/Materials Scavenger-Gunner | -8/Garrison Scavenger-Gunner | -7/Factory Scavenger-Gunner | -7/Garrison Scavenger-Gunner | -7/Factory Bothacker-Gunner | -7/Garrison Scavenger-Gunner | -6/Factory Scavenger-Gunner | -6/Garrison Bothacker-Gunner | -5/Factory Bothacker-Gunner | -5/Waste Bothacker-Gunner | -5/Factory Bothacker-Gunner | -5/Garrison Bothacker-Gunner | -5/Extension Scavenger-Gunner | -5/Cetus Scavenger-Gunner | -5/Archives Scavenger-Gunner | -5/Hub_04(d) Scavenger-Mutant | -4/Factory Scavenger-Mutant | -4/Garrison Mutant | -4/Factory Mutant | -4/Upper Caves Resources | -11 -10 -9 -8 -8 -8 -8 -7 -7 -7 -7 -6 -6 -5 -5 -5 -5 -5 -5 -5 -5 -4 -4 -4 -4 ----------- Run | Yrd Mat Mat Mat Gar Mat Gar Fac Gar Fac Gar Fac Gar Fac Was Fac Gar Ext Cet Arc Hub Fac Gar Fac Upp Matter Collected 8362 | 306 202 189 628 706 152 801 141 846 . 1279 64 507 272 135 22 . 628 137 171 789 . 231 90 66 Remotely . | . . . . . . . . . . . . . . . . . . . . . . . . . Salvage Created 10968 | 172 353 539 833 633 136 712 91 863 . 1283 64 698 559 . 22 61 1270 111 308 1548 . 411 301 . Parts 575 | 14 25 22 43 36 5 56 2 41 . 58 4 30 27 . 1 3 68 8 16 85 . 20 11 . Haulers Intercepted 2 | . . . 1 . . . . . . . . . 1 . . . . . . . . . . . Recyclers Shooed 6 | . . 1 2 . . . . . . . . . . . 1 . 1 . . . . . 1 . Parts Field Recycled . | . . . . . . . . . . . . . . . . . . . . . . . . . Retrieved Matter . | . . . . . . . . . . . . . . . . . . . . . . . . . Parts Self-Destructed . | . . . . . . . . . . . . . . . . . . . . . . . . . Prevented . | . . . . . . . . . . . . . . . . . . . . . . . . . Parts Restored . | . . . . . . . . . . . . . . . . . . . . . . . . . Kills | -11 -10 -9 -8 -8 -8 -8 -7 -7 -7 -7 -6 -6 -5 -5 -5 -5 -5 -5 -5 -5 -4 -4 -4 -4 ------- Run | Yrd Mat Mat Mat Gar Mat Gar Fac Gar Fac Gar Fac Gar Fac Was Fac Gar Ext Cet Arc Hub Fac Gar Fac Upp Combat Hostiles Destroyed 228 | . 12 14 16 18 2 20 2 24 . 38 1 15 7 . . 1 18 1 3 22 . 11 3 . Melee 5 | . . . . . . . . 1 . . . . . . . . . . . 2 . 1 1 . Guns 166 | . 9 14 16 18 2 20 2 15 . . 1 13 7 . . 1 18 1 3 20 . 5 1 . Cannons 33 | . . . . . . . . . . 33 . . . . . . . . . . . . . . AOE 23 | . 3 . . . . . . 8 . 5 . 2 . . . . . . . . . 4 1 . Classes Destroyed 19 | 2 3 2 3 2 1 2 . . . 2 . . . . . . . . . 2 . . . . Worker 3 | . 1 . . . . . . . . . . . 1 . . . . . . 1 . . . . Builder 1 | . . . . . . . . . . . . . . . . . . . . 1 . . . . Tunneler 4 | 4 . . . . . . . . . . . . . . . . . . . . . . . . Hauler 2 | . . . 1 . . . . . . . . . 1 . . . . . . . . . . . Recycler 7 | 1 . . 2 . . . . . . . . . . . . . 2 . . 1 . . 1 . Mechanic 3 | . . . . . . . . . . 1 . . . . . . . . . 1 . . 1 . Operator 3 | . . . 1 . . . . . . . . . . . 1 . . . 1 . . . . . Watcher 2 | . . . . . 1 . . . . . . . . . . . . 1 . . . . . . Swarmer 52 | . 6 4 . 5 . 7 . 8 . 9 . 4 . . . . 4 . . . . 4 1 . Cutter 1 | . . . . . . 1 . . . . . . . . . . . . . . . . . . Grunt 80 | . 6 7 9 7 2 2 2 9 . 12 . 6 3 . . . 2 . . 10 . 3 . . Brawler 5 | . . 1 1 1 . . . . . 1 . . . . . . . . . 1 . . . . Duelist 6 | . . . 1 2 . 1 . . . . . 2 . . . . . . . . . . . . Sentry 45 | . . 2 5 . . 7 . 5 . 10 . 2 1 . . . 6 . 3 2 . 1 1 . Specialist 4 | . . . . 1 . . . 1 . . . . . . . . . . . 2 . . . . Hunter 12 | . . . . 2 . . . . . 2 . . 2 . . . 3 . . 3 . . . . Programmer 15 | . . . . . . 2 . 1 . 3 . . 1 . . 1 2 . . 2 . 3 . . Heavy 1 | . . . . . . . . . . . . . . . . . . . . 1 . . . . Behemoth 6 | . . . . . . . . . . 1 1 1 . . . . 1 . . 1 . . 1 . Cetus Guard 1 | . . . . . . . . . . . . . . . . . . 1 . . . . . . Best Kill Streak 8 | 2 5 8 6 3 3 4 2 6 . 6 1 5 3 . 1 1 4 2 4 7 . 4 4 . Combat Bots Only 8 | . 5 8 5 3 2 4 2 6 . 6 1 5 3 . . 1 4 1 3 6 . 4 2 . Max Kills in Single Turn 3 | 1 3 1 2 1 1 3 1 2 . 2 1 2 2 . 1 1 2 1 2 2 . 3 1 . Gunslinging 1 | . . . . . . . . 1 . . . . . . . . . . . . . . . . Exploded 3 | . 3 . . . . . . 2 . 2 . 1 . . . . . . . . . 3 1 . Melee 1 | . . . . . . . . 1 . . . . . . . . . . . 1 . 1 1 . Uniques/NPCs Destroyed . | . . . . . . . . . . . . . . . . . . . . . . . . . Combat | -11 -10 -9 -8 -8 -8 -8 -7 -7 -7 -7 -6 -6 -5 -5 -5 -5 -5 -5 -5 -5 -4 -4 -4 -4 -------- Run | Yrd Mat Mat Mat Gar Mat Gar Fac Gar Fac Gar Fac Gar Fac Was Fac Gar Ext Cet Arc Hub Fac Gar Fac Upp Hostile Shots Fired 1832 | . 58 82 71 127 3 73 4 224 . 355 18 54 49 . . 2 86 5 11 307 . 132 162 9 Missed 584 | . 18 16 22 28 . 12 3 78 . 118 4 14 15 . . 1 26 2 2 101 . 39 78 7 Hits 1248 | . 40 66 49 99 3 61 1 146 . 237 14 40 34 . . 1 60 3 9 206 . 93 84 2 Melee 22 | . . . 4 5 . 6 . . . 2 . 1 . . . . . . . 3 . . 1 . Projectile 1226 | . 40 66 45 94 3 55 1 146 . 235 14 39 34 . . 1 60 3 9 203 . 93 83 2 AOE 2 | . . . . . . 2 . . . . . . . . . . . . . . . . . . Critical Strikes 44 | . . 4 6 3 . 6 . . . 3 1 . 1 . . . 2 . . 13 . 4 1 . Part Disruptions 1 | . . . . . . . . . . 1 . . . . . . . . . . . . . . Damage Taken 19623 | . 378 760 800 1567 68 876 56 1445 . 2654 270 280 474 . . 16 1188 71 172 4563 . 1981 1968 36 Core 2724 | . 58 194 109 147 . 175 . 150 . 221 . 7 72 . . . 89 . 20 323 . 79 1044 36 Absorbed by Shields 911 | . . . . 17 . 34 . . . . . 180 179 . . 6 394 25 63 13 . . . . Regen/Repaired (Parts) 223 | . . . . . . . 66 . . . 18 . . . 139 . . . . . . . . . Core Remaining (%) 63 | 100 76 51 . . . 21 . . . 47 . 99 . . . . . . . 49 . . . . Volleys Fired 640 | 9 44 40 51 65 4 55 4 58 1 88 5 24 21 . 2 1 38 6 8 70 1 35 10 . Largest 3 | 2 2 2 3 3 3 3 3 3 1 2 3 3 3 . 3 3 3 3 3 3 2 2 2 . Hottest 175 | 40 50 73 75 100 84 84 81 122 40 80 84 84 84 . 84 84 99 99 99 101 68 68 175 . Shots Fired 1480 | 18 88 63 149 169 12 139 12 143 1 173 15 68 63 . 6 3 110 18 25 151 2 36 16 . Gun 1267 | 18 87 63 149 161 12 137 12 136 . 1 15 66 63 . 6 3 106 18 25 145 2 34 8 . Cannon 174 | . . . . . . . . . 1 168 . . . . . . . . . . . . 5 . Launcher 19 | . 1 . . . . . . 7 . 4 . 2 . . . . . . . . . 2 3 . Special 20 | . . . . 8 . 2 . . . . . . . . . . 4 . . 6 . . . . Kinetic 1333 | 18 87 23 149 151 12 137 12 119 1 169 15 66 63 . 6 3 106 18 25 145 2 6 . . Thermal 108 | . . 40 . 18 . 2 . 17 . . . . . . . . 3 . . . . 28 . . Explosive 19 | . 1 . . . . . . 7 . 4 . 2 . . . . . . . . . 2 3 . Electromagnetic 13 | . . . . . . . . . . . . . . . . . . . . . . . 13 . Robot Hit Streak 23 | 6 8 17 7 8 8 7 5 7 . 15 3 12 11 . 3 3 23 14 20 21 . 12 13 . Robot Miss Streak 10 | 1 6 1 10 5 3 8 5 5 . 3 1 2 3 . 1 . 2 1 1 2 . 1 2 . Penetration Max 1 | . . . . . 1 1 . 1 . 1 . 1 1 . . . 1 1 1 1 . 1 . . Secondary Targets 23 | . . . 2 5 . 4 . 2 . . . . . . . . 3 1 1 5 . . . . Max Gunslinging Chain 1 | . . . 1 1 . 1 . 1 . . . . . . . . 1 1 1 1 . . . . Shots Hit Robots 907 | 13 38 48 96 88 6 51 7 74 . 95 9 46 46 . 4 1 83 16 23 118 . 32 13 . Core Hits 508 | 7 21 25 43 40 6 31 4 57 . 53 4 33 24 . 2 1 48 9 15 56 . 18 11 . Critical Kills 25 | . 1 . . . . 2 . . . . . . 2 . . 1 8 1 2 7 . 1 . . Critical Parts Destroyed 20 | . 1 . . . . 1 . . . . . . 2 . 1 . 5 1 . 7 . 2 . . Critical Strikes 73 | . 2 2 . 1 . 3 . . . 16 . . 4 . 1 1 15 2 3 16 . 6 1 . Burn 6 | . . 2 . 1 . . . . . . . . . . . . . . . . . 3 . . Destroy 50 | . 2 . . . . 3 . . . . . . 4 . 1 1 15 2 3 16 . 3 . . Blast 16 | . . . . . . . . . . 16 . . . . . . . . . . . . . . Impale 1 | . . . . . . . . . . . . . . . . . . . . . . . 1 . Melee Attacks 2 | . . . . . . . . 1 . . . . . . . . . . . . . . 1 . Impact . | . . . . . . . . . . . . . . . . . . . . . . . . . Slashing 1 | . . . . . . . . 1 . . . . . . . . . . . . . . . . Piercing 1 | . . . . . . . . . . . . . . . . . . . . . . . 1 . Sneak Attacks . | . . . . . . . . . . . . . . . . . . . . . . . . . Combat Hostiles . | . . . . . . . . . . . . . . . . . . . . . . . . . Follow-up Attacks . | . . . . . . . . . . . . . . . . . . . . . . . . . Damage Inflicted 22658 | 136 532 688 1701 1582 198 1165 173 2352 . 3826 180 1356 839 . 123 22 2077 426 606 2835 . 1183 658 . Guns 16150 | 136 388 680 1701 1561 198 1160 173 1434 . 22 180 1009 839 . 81 22 1999 426 599 2793 . 667 82 . Cannons 3221 | . . . . . . . . . . 3115 . . . . . . . . . . . . 106 . Explosions 2819 | . 130 . . . . . . 874 . 670 . 347 . . . . . . . . . 382 416 . Melee 98 | . . . . . . . . 44 . . . . . . . . . . . . . . 54 . Ramming 348 | . 14 8 . 21 . 5 . . . 19 . . . . 42 . 56 . 7 42 . 134 . . Kinetic 18068 | 136 388 281 1701 1510 198 1160 173 1233 . 3137 180 1009 839 . 81 22 1999 426 599 2793 . 203 . . Thermal 1137 | . . 399 . 51 . . . 201 . . . . . . . . 22 . . . . 464 . . Explosive 2819 | . 130 . . . . . . 874 . 670 . 347 . . . . . . . . . 382 416 . Electromagnetic 188 | . . . . . . . . . . . . . . . . . . . . . . . 188 . Impact . | . . . . . . . . . . . . . . . . . . . . . . . . . Slashing 44 | . . . . . . . . 44 . . . . . . . . . . . . . . . . Piercing 54 | . . . . . . . . . . . . . . . . . . . . . . . 54 . Highest Corruption 16 | . . . . 2 2 3 . . . 5 . . 2 2 2 2 11 11 11 16 . 11 13 13 Average Corruption 5 | . . . . 1 2 2 . . . 4 . . 1 2 2 2 7 11 11 12 . 10 11 13 Corruption Purged . | . . . . . . . . . . . . . . . . . . . . . . . . . Corruption Blocked . | . . . . . . . . . . . . . . . . . . . . . . . . . Effects 251 | . . . . 27 2 31 . . . 38 . . 1 2 6 1 29 11 11 39 . 15 32 6 Message Errors 53 | . . . . 3 . 8 . . . 8 . . . 1 3 . 6 3 2 7 . 3 7 2 Matter Fused 66 | . . . . 5 1 4 . . . 10 . . 1 . 3 . 7 1 2 14 . 7 9 2 Heat Flow Errors 22 | . . . . 2 1 1 . . . 1 . . . . . 1 3 2 1 3 . 2 4 1 Energy Discharges 26 | . . . . 6 . 3 . . . 4 . . . 1 . . 4 . 1 4 . . 2 1 Parts Rejected 4 | . . . . . . . . . . 1 . . . . . . . . . 2 . . 1 . Parts Fused 1 | . . . . . . 1 . . . . . . . . . . . . . . . . . . Data Loss (minor) 30 | . . . . 1 . 7 . . . 4 . . . . . . 4 3 1 4 . 3 3 . Data Loss (major) 13 | . . . . 6 . 2 . . . 3 . . . . . . . . 1 1 . . . . Misfires 16 | . . . . 3 . 2 . . . 4 . . . . . . 2 1 2 1 . . 1 . Alerts 4 | . . . . . . 1 . . . . . . . . . . . . . 1 . . 2 . Misdirections 3 | . . . . . . . . . . . . . . . . . . . . . . . 3 . Weapon Failures 13 | . . . . 1 . 2 . . . 3 . . . . . . 3 1 1 2 . . . . Overload Shots . | . . . . . . . . . . . . . . . . . . . . . . . . . Overflow Damage 188 | . . . . . . . . 28 . 107 . . . . . . 1 . . . . 16 36 . Projectiles 59 | . . . . . . . . . . 59 . . . . . . . . . . . . . . Explosions 128 | . . . . . . . . 28 . 48 . . . . . . . . . . . 16 36 . Melee 1 | . . . . . . . . . . . . . . . . . 1 . . . . . . . Knockbacks 17 | . . . . . . . . . . 15 . . . . 1 . . . . . . 1 . . Impact 2 | . . . . . . . . . . . . . . . 1 . . . . . . 1 . . Kinetic 15 | . . . . . . . . . . 15 . . . . . . . . . . . . . . Secondary . | . . . . . . . . . . . . . . . . . . . . . . . . . Self-Inflicted Damage 236 | . . . . . . . . . . 30 . . . . . . . . . . . 79 127 . Shots 7 | . . . . . . . . . . 2 . . . . . . . . . . . 2 3 . Rammed 38 | . . . . . . . . . . 2 . . . . 2 . 6 . 1 7 . 20 . . Targets Rammed 49 | . 2 2 . 3 . 1 . . . 2 . . . . 2 . 6 . 1 9 . 21 . . Kicked 8 | . 2 2 . 3 . 1 . . . . . . . . . . . . . . . . . . Crushed 3 | . . . . . . . . . . . . . . . . . . . . 2 . 1 . . Highest Temperature 372 | . 12 110 221 311 233 82 9 15 . 251 372 110 85 . . 104 221 273 100 251 . 229 205 150 Average Temperature 56 | . 6 44 55 73 62 24 7 7 . 62 171 33 33 . . 65 51 69 27 65 . 55 55 76 Received Heat Transfer 4955 | . 108 297 396 549 18 197 18 432 . 606 366 82 73 . . . 154 6 24 1255 . 253 112 9 Effects 1 | . . . . . . . . . . . 1 . . . . . . . . . . . . . Shutdowns 1 | . . . . . . . . . . . 1 . . . . . . . . . . . . . Siege Activations . | . . . . . . . . . . . . . . . . . . . . . . . . . Martial Activations . | . . . . . . . . . . . . . . . . . . . . . . . . . Shielding Activations . | . . . . . . . . . . . . . . . . . . . . . . . . . Robots Disrupted . | . . . . . . . . . . . . . . . . . . . . . . . . . Combat Hostiles . | . . . . . . . . . . . . . . . . . . . . . . . . . Robots Corrupted . | . . . . . . . . . . . . . . . . . . . . . . . . . Combat Hostiles . | . . . . . . . . . . . . . . . . . . . . . . . . . Parts Fried . | . . . . . . . . . . . . . . . . . . . . . . . . . Impact Corruptions 1 | . . . . . . . . . . . . . . . . . 1 . . . . . . . Robots Melted 1 | . . . . . . . . . . . . . . . . . . . . . . 1 . . Combat Hostiles 1 | . . . . . . . . . . . . . . . . . . . . . . 1 . . Parts Melted 7 | . . 3 . . . . . . . . . . . . . . 1 . . . . 3 . . Heat Transferred 3108 | . . 1332 . 222 . . . 370 . . . . . . . . 74 . . . . 1110 . . Parts Sabotaged 3 | . . . . . . . . . . . . . . . . . . . . 3 . . . . Parts Stolen . | . . . . . . . . . . . . . . . . . . . . . . . . . Parts Stripped . | . . . . . . . . . . . . . . . . . . . . . . . . . Power Chain Reactions . | . . . . . . . . . . . . . . . . . . . . . . . . . Alert | -11 -10 -9 -8 -8 -8 -8 -7 -7 -7 -7 -6 -6 -5 -5 -5 -5 -5 -5 -5 -5 -4 -4 -4 -4 ------- Run | Yrd Mat Mat Mat Gar Mat Gar Fac Gar Fac Gar Fac Gar Fac Was Fac Gar Ext Cet Arc Hub Fac Gar Fac Upp Maximum Alert Level 4 | . 1 1 1 3 2 4 3 4 3 4 3 3 2 . . . 2 1 . 1 . 1 1 . Low Security (%) 37 | 100 95 78 87 1 . . . . . . . . . 100 100 100 33 . 100 90 100 93 97 . Level 1 7 | . 4 21 12 6 . 2 . . . . . . . . . . 22 100 . 9 . 6 2 . Level 2 20 | . . . . 46 100 14 . 15 53 33 . 19 100 . . . 44 . . . . . . . Level 3 20 | . . . . 45 . 22 100 16 46 30 100 80 . . . . . . . . . . . . Level 4 14 | . . . . . . 60 . 68 . 36 . . . . . . . . . . . . . . Level 5 . | . . . . . . . . . . . . . . . . . . . . . . . . . High Security . | . . . . . . . . . . . . . . . . . . . . . . . . . Max Security . | . . . . . . . . . . . . . . . . . . . . . . . . . Peak Influence 1532 | 10 211 241 296 1072 601 1495 938 1449 760 1532 804 1046 610 197 39 134 545 392 147 227 98 231 206 . Initial 804 | . 3 50 78 183 522 384 784 615 760 437 804 529 548 197 39 . 70 299 110 23 98 . 121 . Average 535 | 2 99 106 61 671 529 1077 867 1185 695 1000 770 797 563 126 4 109 315 332 106 88 47 93 66 . Influence Increases 9968 | 25 361 371 515 959 119 1241 205 1014 15 1275 73 587 207 . 5 134 1025 148 147 746 19 281 436 60 Destroy 0b10 Robot/C 5560 | . 240 280 320 380 60 620 120 720 . 840 40 360 140 . . 20 540 80 80 440 . 220 60 . Destroy 0b10 Robot/NC 160 | 25 5 . 20 . 10 . 10 . . 5 . . 10 . 5 . 30 5 5 20 . . 10 . Destroy Leader 632 | . 40 60 72 20 14 20 20 30 . 50 20 30 42 . . . 74 . . 110 . 10 20 . Allied During Kill 806 | . . . . 8 35 194 44 88 . 127 12 32 . . . . 197 48 15 6 . . . . Successful Hack 151 | . 25 . 11 16 . 21 11 7 14 14 . . . . . 14 13 . . 5 . . . . Disable Machine 285 | . . . 15 . . . . 30 . 15 . . 15 . . . 30 15 45 90 15 . 15 . Anti-Garrison Action 1100 | . . . . 500 . 300 . 50 . 100 . 50 . . . 100 . . . . . . . . Destroy Structure 314 | . 6 1 2 20 . 41 . 89 1 64 1 25 . . . . 6 . 2 30 4 6 16 . Partial Spotted 45 | . . . . . . . . . . . . . . . . . . . . . . . 45 . Lose Combat Pursuer 915 | . 45 30 75 15 . 45 . . . 60 . 90 . . . . 135 . . 45 . 45 270 60 Influence Decreases 9854 | 20 245 305 420 169 600 337 821 444 839 368 848 298 688 508 62 . 624 406 357 612 220 50 469 144 Entered New Map 5528 | . 2 71 109 99 550 207 711 264 689 188 728 228 498 368 18 . 64 236 167 44 103 . 110 74 Time Decay 2896 | 20 243 174 301 . 50 . 100 . 150 . 100 . 190 140 44 . 380 150 100 288 117 . 279 70 Lost Part 640 | . . 60 10 70 . 30 10 60 . 60 . . . . . . 20 . 10 180 . 50 80 . Lost Ally 790 | . . . . . . 100 . 120 . 120 20 70 . . . . 160 20 80 100 . . . . Squads Dispatched 26 | . 2 1 4 . 1 . 1 . . . . . . . 1 . 2 . . 8 2 . 4 . Investigation 2 | . 1 . . . . . 1 . . . . . . . . . . . . . . . . . Extermination 4 | . . . . . . . . . . . . . . . 1 . . . . 1 . . 2 . Reinforcement 15 | . 1 1 2 . . . . . . . . . . . . . 2 . . 5 2 . 2 . Assault 2 | . . . . . . . . . . . . . . . . . . . . 2 . . . . Garrison 3 | . . . 2 . 1 . . . . . . . . . . . . . . . . . . . Intercept . | . . . . . . . . . . . . . . . . . . . . . . . . . Searches Triggered . | . . . . . . . . . . . . . . . . . . . . . . . . . Construction Impeded 2 | . . 1 . . . . . . . . . . . . . . 1 . . . . . . . Haulers Reinforced . | . . . . . . . . . . . . . . . . . . . . . . . . . Active Scanning Responses . | . . . . . . . . . . . . . . . . . . . . . . . . . Cargo Convoy Interrupts . | . . . . . . . . . . . . . . . . . . . . . . . . . Stealth | -11 -10 -9 -8 -8 -8 -8 -7 -7 -7 -7 -6 -6 -5 -5 -5 -5 -5 -5 -5 -5 -4 -4 -4 -4 --------- Run | Yrd Mat Mat Mat Gar Mat Gar Fac Gar Fac Gar Fac Gar Fac Was Fac Gar Ext Cet Arc Hub Fac Gar Fac Upp Distress Signals 19 | . 3 1 3 . 1 1 . . . . . . . . . . 5 1 . 2 . . 2 . Communications Jammed . | . . . . . . . . . . . . . . . . . . . . . . . . . Distress Signals . | . . . . . . . . . . . . . . . . . . . . . . . . . Times Spotted 395 | . 20 20 27 20 7 32 7 35 . 50 2 20 7 . 2 1 39 4 13 42 2 11 29 5 Peak Tracking Total 13 | . 3 9 5 4 3 5 4 8 . 8 1 4 3 . 1 1 8 5 2 8 1 4 13 4 Tactical Retreats 36 | . 3 1 3 1 . 3 . . . 3 . 3 . . . . 6 . . 3 . 1 7 2 Traps | -11 -10 -9 -8 -8 -8 -8 -7 -7 -7 -7 -6 -6 -5 -5 -5 -5 -5 -5 -5 -5 -4 -4 -4 -4 ------- Run | Yrd Mat Mat Mat Gar Mat Gar Fac Gar Fac Gar Fac Gar Fac Was Fac Gar Ext Cet Arc Hub Fac Gar Fac Upp Traps Triggered 23 | . 1 . . 6 . 6 . 4 . 1 . . 1 . . . . . . 1 . 1 2 . Indirectly . | . . . . . . . . . . . . . . . . . . . . . . . . . Trap Hack Attempts . | . . . . . . . . . . . . . . . . . . . . . . . . . Triggered . | . . . . . . . . . . . . . . . . . . . . . . . . . Disarmed . | . . . . . . . . . . . . . . . . . . . . . . . . . Reprogrammed . | . . . . . . . . . . . . . . . . . . . . . . . . . Reused . | . . . . . . . . . . . . . . . . . . . . . . . . . Traps Extracted . | . . . . . . . . . . . . . . . . . . . . . . . . . Installed . | . . . . . . . . . . . . . . . . . . . . . . . . . Triggered . | . . . . . . . . . . . . . . . . . . . . . . . . . Machines | -11 -10 -9 -8 -8 -8 -8 -7 -7 -7 -7 -6 -6 -5 -5 -5 -5 -5 -5 -5 -5 -4 -4 -4 -4 ---------- Run | Yrd Mat Mat Mat Gar Mat Gar Fac Gar Fac Gar Fac Gar Fac Was Fac Gar Ext Cet Arc Hub Fac Gar Fac Upp Machines Disabled 32 | . . . 1 3 . 5 . 4 . 3 . 1 1 . . . 2 1 3 6 1 . 1 . Max in Single Turn 2 | . . . 1 1 . 1 . 2 . 1 . 1 1 . . . 1 1 1 1 1 . 1 . Garrison Access 2 | . . . . . . . . . . . . . . . . . . . . 1 . . 1 . Garrison Relay 8 | . . . . 3 . 3 . . . . . 1 . . . . . . . . . 1 . . Phase Generator 1 | . . . . . . . . 1 . . . . . . . . . . . . . . . . Energy Cycler 1 | . . . . . . . . . . . . . . . . . 1 . . . . . . . Machines Repaired . | . . . . . . . . . . . . . . . . . . . . . . . . . Machines Dismantled 3 | . . . . . . . . . . . . . . . . . 2 1 . . . . . . Machines Sabotaged . | . . . . . . . . . . . . . . . . . . . . . . . . . Overloaded Fab Kills . | . . . . . . . . . . . . . . . . . . . . . . . . . Hacking | -11 -10 -9 -8 -8 -8 -8 -7 -7 -7 -7 -6 -6 -5 -5 -5 -5 -5 -5 -5 -5 -4 -4 -4 -4 --------- Run | Yrd Mat Mat Mat Gar Mat Gar Fac Gar Fac Gar Fac Gar Fac Was Fac Gar Ext Cet Arc Hub Fac Gar Fac Upp Machines Accessed 32 | . 2 . 2 2 1 3 4 2 2 1 2 1 . . 4 1 1 . . 1 1 . 2 . Terminals 20 | . 2 . 1 2 . 3 2 2 1 1 . 1 . . 2 1 1 . . 1 . . . . Fabricators 3 | . . . . . . . . . . . 1 . . . 1 . . . . . . . 1 . Repair Stations 1 | . . . . . . . 1 . . . . . . . . . . . . . . . . . Recycling Units . | . . . . . . . . . . . . . . . . . . . . . . . . . Scanalyzers . | . . . . . . . . . . . . . . . . . . . . . . . . . Garrison Access 8 | . . . 1 . 1 . 1 . 1 . 1 . . . 1 . . . . . 1 . 1 . Total Hacks 67 | . 10 . 4 3 1 6 8 3 2 3 3 2 . . 8 1 5 . . 4 1 . 3 . Successful 38 | . 7 . 3 1 1 2 5 1 2 1 3 . . . 4 1 2 . . 2 1 . 2 . Failed 29 | . 3 . 1 2 . 4 3 2 . 2 . 2 . . 4 . 3 . . 2 . . 1 . Catastrophic 5 | . 1 . . . . 2 . . . . . . . . 1 . 1 . . . . . . . Database Lockouts . | . . . . . . . . . . . . . . . . . . . . . . . . . Manual 20 | . 7 . 1 . . 1 7 . 1 . . . . . 2 . 1 . . . . . . . Terminals 52 | . 10 . 3 3 . 6 6 3 1 3 . 2 . . 5 1 5 . . 4 . . . . Fabricators 6 | . . . . . . . . . . . 2 . . . 2 . . . . . . . 2 . Repair Stations 1 | . . . . . . . 1 . . . . . . . . . . . . . . . . . Recycling Units . | . . . . . . . . . . . . . . . . . . . . . . . . . Scanalyzers . | . . . . . . . . . . . . . . . . . . . . . . . . . Garrison Access 8 | . . . 1 . 1 . 1 . 1 . 1 . . . 1 . . . . . 1 . 1 . Terminal Hacks 19 | . 5 . 2 1 . 2 2 1 . 1 . . . . 1 1 1 . . 2 . . . . Part Schematic 1 | . 1 . . . . . . . . . . . . . . . . . . . . . . . Robot Schematic 1 | . 1 . . . . . . . . . . . . . . . . . . . . . . . Robot Analysis 4 | . . . 1 . . . 2 . . . . . . . . . 1 . . . . . . . Prototype ID Bank 2 | . . . . . . . . . . . . . . . 1 . . . . 1 . . . . Open Door 2 | . . . . . . 1 . 1 . . . . . . . . . . . . . . . . Branch Access Points 3 | . 1 . 1 . . . . . . . . . . . . . . . . 1 . . . . Emergency Access Points 2 | . . . . . . 1 . . . 1 . . . . . . . . . . . . . . Locate Traps 1 | . 1 . . . . . . . . . . . . . . . . . . . . . . . Zone Layout 1 | . 1 . . . . . . . . . . . . . . . . . . . . . . . Garrison Registry 1 | . . . . . . . . . . . . . . . . 1 . . . . . . . . Security Stations 1 | . . . . 1 . . . . . . . . . . . . . . . . . . . . Fabricator Hacks 5 | . . . . . . . . . . . 2 . . . 2 . . . . . . . 1 . Load Schematic 3 | . . . . . . . . . . . 1 . . . 1 . . . . . . . 1 . Build 2 | . . . . . . . . . . . 1 . . . 1 . . . . . . . . . Repair Station Hacks . | . . . . . . . . . . . . . . . . . . . . . . . . . Recycling Unit Hacks . | . . . . . . . . . . . . . . . . . . . . . . . . . Scanalyzer . | . . . . . . . . . . . . . . . . . . . . . . . . . Garrison Access Hacks 8 | . . . 1 . 1 . 1 . 1 . 1 . . . 1 . . . . . 1 . 1 . Unlock Access 7 | . . . 1 . 1 . 1 . 1 . 1 . . . 1 . . . . . 1 . . . Seal Access 1 | . . . . . . . . . . . . . . . . . . . . . . . 1 . Unauthorized Hacks 6 | . 2 . . . . . 2 . 1 . . . . . . . 1 . . . . . . . Terminals 5 | . 2 . . . . . 1 . 1 . . . . . . . 1 . . . . . . . Disrupt 1 | . . . . . . . . . . . . . . . . . 1 . . . . . . . Skim 4 | . 2 . . . . . 1 . 1 . . . . . . . . . . . . . . . Fabricators . | . . . . . . . . . . . . . . . . . . . . . . . . . Repair Stations 1 | . . . . . . . 1 . . . . . . . . . . . . . . . . . Patch 1 | . . . . . . . 1 . . . . . . . . . . . . . . . . . Recycling Units . | . . . . . . . . . . . . . . . . . . . . . . . . . Scanalyzers . | . . . . . . . . . . . . . . . . . . . . . . . . . Garrison Access . | . . . . . . . . . . . . . . . . . . . . . . . . . Data Cores Recovered 1 | . . . . . . . . . . . . . . . 1 . . . . . . . . . Used 1 | . . . . . . . . . . . . . . . 1 . . . . . . . . . Hacking Detections 21 | . 2 . 1 1 1 2 2 1 2 1 . 1 . . 2 1 1 . . 1 1 . 1 . Full Trace Events 2 | . . . . 1 . 1 . . . . . . . . . . . . . . . . . . Feedback Events 1 | . . . . 1 . . . . . . . . . . . . . . . . . . . . Corruption 1 | . . . . 1 . . . . . . . . . . . . . . . . . . . . Feedback Blocked . | . . . . . . . . . . . . . . . . . . . . . . . . . Robot Schematics Acquired 1 | . 1 . . . . . . . . . . . . . . . . . . . . . . . Robots Built 2 | . . . . . . . . . . . 1 . . . 1 . . . . . . . . . Authchips 2 | . . . . . . . . . . . 1 . . . 1 . . . . . . . . . Time 80 | . . . . . . . . . . . 40 . . . 40 . . . . . . . . . Total Robot Build Rating 2 | . . . . . . . . . . . 1 . . . 1 . . . . . . . . . Part Schematics Acquired 1 | . 1 . . . . . . . . . . . . . . . . . . . . . . . Parts Built . | . . . . . . . . . . . . . . . . . . . . . . . . . Authchips . | . . . . . . . . . . . . . . . . . . . . . . . . . Time . | . . . . . . . . . . . . . . . . . . . . . . . . . Total Part Build Rating . | . . . . . . . . . . . . . . . . . . . . . . . . . Part Studies Acquired . | . . . . . . . . . . . . . . . . . . . . . . . . . Parts Repaired . | . . . . . . . . . . . . . . . . . . . . . . . . . Time . | . . . . . . . . . . . . . . . . . . . . . . . . . Parts Recycled . | . . . . . . . . . . . . . . . . . . . . . . . . . Recycled Matter . | . . . . . . . . . . . . . . . . . . . . . . . . . Retrieved Matter . | . . . . . . . . . . . . . . . . . . . . . . . . . Retrieved Components . | . . . . . . . . . . . . . . . . . . . . . . . . . Parts Scanalyzed . | . . . . . . . . . . . . . . . . . . . . . . . . . Part Schematics Acquired . | . . . . . . . . . . . . . . . . . . . . . . . . . Parts Damaged . | . . . . . . . . . . . . . . . . . . . . . . . . . Bothacking | -11 -10 -9 -8 -8 -8 -8 -7 -7 -7 -7 -6 -6 -5 -5 -5 -5 -5 -5 -5 -5 -4 -4 -4 -4 ------------ Run | Yrd Mat Mat Mat Gar Mat Gar Fac Gar Fac Gar Fac Gar Fac Was Fac Gar Ext Cet Arc Hub Fac Gar Fac Upp Used RIF Installer 7 | . . . . 1 . 1 . 1 . 1 . 1 . . . 1 . . . . . 1 . . Coupler Efficiency 1 | . . . . . . . . . . . . . . . . . . . . . . 1 . . Hotswap 1 | . . . . . . 1 . . . . . . . . . . . . . . . . . . Zone Cloak 1 | . . . . . . . . . . . . . . . . 1 . . . . . . . . Robot Detection 1 | . . . . . . . . 1 . . . . . . . . . . . . . . . . Patrol Navigation 1 | . . . . . . . . . . 1 . . . . . . . . . . . . . . Structural Interface 1 | . . . . . . . . . . . . 1 . . . . . . . . . . . . Robots Hacked 7 | . . . . . . . . . . . . . . . . . 1 . . 6 . . . . Non-combat . | . . . . . . . . . . . . . . . . . . . . . . . . . Combat 7 | . . . . . . . . . . . . . . . . . 1 . . 6 . . . . Robot Hacks Applied 7 | . . . . . . . . . . . . . . . . . 1 . . 6 . . . . amplify_resonance 1 | . . . . . . . . . . . . . . . . . . . . 1 . . . . overwrite_iff 5 | . . . . . . . . . . . . . . . . . . . . 5 . . . . formatsys_high 1 | . . . . . . . . . . . . . . . . . 1 . . . . . . . Relay Couplers Released 38 | . . . . 11 . 13 . . . . . 4 . . . 3 . . . 2 . 5 . . Machine Destruction 35 | . . . . 11 . 13 . . . . . 4 . . . . . . . 2 . 5 . . Programmers 3 | . . . . . . . . . . . . . . . . 3 . . . . . . . . Attached 7 | . . . . . . . . . . . . . . . . . 1 . . 2 . 1 1 2 Fabnet Peak Effective % . | . . . . . . . . . . . . . . . . . . . . . . . . . Robots Rewired 34 | . . . . 6 . 3 . 3 . 10 . . . . . 2 10 . . . . . . . Allies Hacked 2 | . . . . . . 1 . 1 . . . . . . . . . . . . . . . . Hacks Repelled . | . . . . . . . . . . . . . . . . . . . . . . . . . Allies | -11 -10 -9 -8 -8 -8 -8 -7 -7 -7 -7 -6 -6 -5 -5 -5 -5 -5 -5 -5 -5 -4 -4 -4 -4 -------- Run | Yrd Mat Mat Mat Gar Mat Gar Fac Gar Fac Gar Fac Gar Fac Was Fac Gar Ext Cet Arc Hub Fac Gar Fac Upp Total Allies 47 | . . . . 6 . 5 . 3 . 10 1 . . . 1 2 14 . . 5 . . . . Largest Group 11 | . . . . 6 6 8 4 4 . 7 4 4 . . 1 2 11 7 6 1 . . . . Highest-Rated Group 448 | . . . . 170 170 232 160 160 . 205 125 99 . . 14 70 448 324 293 31 . . . . Highest-Rated Ally 159 | . . . . 40 40 40 40 40 . 40 40 32 . . 14 41 159 150 150 31 . . . . Total Orders 2 | . . . . . . . . . . . 1 . . . 1 . . . . . . . . . AID 2 | . . . . . . . . . . . 1 . . . 1 . . . . . . . . . Ally Attacks 345 | . . . . 1 8 59 32 55 . 41 12 16 . . . . 67 27 15 12 . . . . Total Damage 8358 | . . . . 15 191 1453 677 1051 . 882 453 506 . . . . 2200 545 193 192 . . . . Kills 60 | . . . . 1 2 13 6 13 . 4 1 3 . . . . 13 3 1 . . . . . Allies Corrupted . | . . . . . . . . . . . . . . . . . . . . . . . . . Allies Melted 1 | . . . . . . . . . . . . . . . . . . . . 1 . . . . Intel | -11 -10 -9 -8 -8 -8 -8 -7 -7 -7 -7 -6 -6 -5 -5 -5 -5 -5 -5 -5 -5 -4 -4 -4 -4 ------- Run | Yrd Mat Mat Mat Gar Mat Gar Fac Gar Fac Gar Fac Gar Fac Was Fac Gar Ext Cet Arc Hub Fac Gar Fac Upp Active Infowar (turns) 4921 | 69 588 453 945 1379 . . . . . . . . . . . . . . . 1 150 505 672 159 Optics 362 | . . . . . . . . . . . . . . . . . . . . . . . 203 159 Sensors 1229 | . . . . . . . . . . . . . . . . . . . . . 150 505 574 . Structural 1 | . . . . . . . . . . . . . . . . . . . . 1 . . . . Seismic 3434 | 69 588 453 945 1379 . . . . . . . . . . . . . . . . . . . . Robot Analysis Total 4 | . . . 1 . . . 2 . . . . . . . . . 1 . . . . . . . Derelict Logs Recovered . | . . . . . . . . . . . . . . . . . . . . . . . . . Drone Launches . | . . . . . . . . . . . . . . . . . . . . . . . . . Drone Recoveries . | . . . . . . . . . . . . . . . . . . . . . . . . . Exploration | -11 -10 -9 -8 -8 -8 -8 -7 -7 -7 -7 -6 -6 -5 -5 -5 -5 -5 -5 -5 -5 -4 -4 -4 -4 ------------- Run | Yrd Mat Mat Mat Gar Mat Gar Fac Gar Fac Gar Fac Gar Fac Was Fac Gar Ext Cet Arc Hub Fac Gar Fac Upp Turns Passed 15173 | 139 588 457 945 2190 112 1434 215 994 301 1621 217 694 391 299 439 241 898 307 217 841 267 505 702 159 Spaces Moved 7767 | 82 264 160 368 1015 50 725 156 527 146 701 85 367 184 177 232 133 333 156 111 353 152 216 722 352 Core 284 | 2 . . . . . . . . . . . . . . . . . . . . . . 282 . Treads 3377 | . . . . . . . . . 23 701 85 367 184 177 232 133 333 156 111 353 152 216 154 . Legs 3468 | 80 264 160 368 1015 50 725 156 527 123 . . . . . . . . . . . . . . . Wheels . | . . . . . . . . . . . . . . . . . . . . . . . . . Hover 109 | . . . . . . . . . . . . . . . . . . . . . . . 109 . Flight 529 | . . . . . . . . . . . . . . . . . . . . . . . 177 352 Fastest Speed 40 | 50 120 190 190 120 185 112 120 120 170 165 165 165 165 160 160 160 160 160 160 160 162 166 40 40 Average Speed 150 | 118 151 192 190 178 185 158 120 137 189 169 165 165 165 164 160 160 160 160 160 161 163 169 79 40 Slowest Speed 410 | 120 260 260 190 190 185 265 120 190 410 246 165 165 165 165 160 160 160 160 160 245 166 180 170 40 Overloaded Moves . | . . . . . . . . . . . . . . . . . . . . . . . . . Propulsion Burnouts . | . . . . . . . . . . . . . . . . . . . . . . . . . Robots Hopped 2 | . . . . . . . . . . . . . . . . . . . . . . . 2 . Potential Cave-ins . | . . . . . . . . . . . . . . . . . . . . . . . . . Cave-ins Triggered . | . . . . . . . . . . . . . . . . . . . . . . . . . Exploration Rate (%) 40 | 5 46 20 37 75 9 80 6 70 4 76 4 44 6 90 7 36 72 69 78 41 6 36 27 58 Regions Visited 24 Branch Regions 5 Pre-discovered Areas . | . . . . . . . . . . . . . . . . . . . . . . . . . Known Exits Taken 8 | . . . 1 . 1 . 1 . 1 . 1 . . . 1 . . . . . 1 . 1 . Unknown Exits Taken 7 | 1 1 1 . . . . . . . . . . . . . . 1 1 1 1 . . . . Scrap Searched 1 | . . . . . . . . . . . . . . . . . . . . . . . . 1 Spaces Dug 1 | . . . . . . . . . 1 . . . . . . . . . . . . . . . Terrain Destroyed 230 | . 6 . . . . 5 . 133 1 9 1 36 . . . . 4 . 1 22 1 3 8 . Melee . | . . . . . . . . . . . . . . . . . . . . . . . . . Projectile 40 | . . . . . . 4 . 1 1 5 1 2 . . . . 4 . 1 20 1 . . . AOE 187 | . 6 . . . . . . 132 . 4 . 34 . . . . . . . . . 3 8 . Terrain Rammed . | . . . . . . . . . . . . . . . . . . . . . . . . . Walls Destroyed . | . . . . . . . . . . . . . . . . . . . . . . . . . Machines Disabled . | . . . . . . . . . . . . . . . . . . . . . . . . . Actions | -11 -10 -9 -8 -8 -8 -8 -7 -7 -7 -7 -6 -6 -5 -5 -5 -5 -5 -5 -5 -5 -4 -4 -4 -4 --------- Run | Yrd Mat Mat Mat Gar Mat Gar Fac Gar Fac Gar Fac Gar Fac Was Fac Gar Ext Cet Arc Hub Fac Gar Fac Upp Total 9935 | 104 376 242 526 1255 66 891 174 680 170 968 150 406 227 186 296 159 577 184 141 493 168 299 827 370 Wait 508 | . 48 13 65 27 7 17 5 20 9 22 50 6 2 . 55 2 40 5 3 18 8 11 59 16 Move 7733 | 81 263 159 367 1013 49 723 155 525 145 699 84 365 184 176 231 131 332 155 110 352 151 214 717 352 Hop 2 | . . . . . . . . . . . . . . . . . . . . . . . 2 . Pick Up 117 | 7 5 12 13 3 3 5 3 11 3 11 1 4 6 1 1 . 3 2 8 3 1 6 5 . Fast Attach 73 | 7 . 3 1 3 . 4 1 4 4 7 3 . . 2 . . 1 . . 10 4 5 14 . Attach 72 | . . 5 3 7 . 2 2 6 . 8 2 . 2 . 1 . 2 . 2 18 1 3 6 2 Detach 8 | . . . . . . . . . . 2 . . . . . . . . . 1 . 2 3 . Swap 123 | . 8 5 12 14 . 9 2 20 1 10 2 4 6 2 2 1 11 5 2 7 . . . . Drop 137 | . 6 3 14 4 3 12 2 15 7 16 3 3 6 5 2 . 7 3 7 5 2 2 10 . Fire 640 | 9 44 40 51 65 4 55 4 58 1 88 5 24 21 . 2 1 38 6 8 70 1 35 10 . Melee 2 | . . . . . . . . 1 . . . . . . . . . . . . . . 1 . Ram . | . . . . . . . . . . . . . . . . . . . . . . . . . Kick 8 | . 2 2 . 3 . 1 . . . . . . . . . . . . . . . . . . Crush 41 | . . . . . . . . . . 2 . . . . 2 . 6 . 1 9 . 21 . . Escape Stasis 56 | . . . . 20 . 30 . 5 . . . . . . . . 1 . . . . . . . Rewire 391 | . . . . 96 . 33 . 15 . 103 . . . . . 24 120 . . . . . . . Trap . | . . . . . . . . . . . . . . . . . . . . . . . . . Miscellaneous 24 | . . . . . . . . . . . . . . . . . 16 8 . . . . . . Route ------- -11/Scrapyard -10/Materials (discovered 3 exits: [*Mat] / Min x2) -9/Materials -8/Materials (discovered 2 exits: *Fac / Gar) -8/Garrison (discovered 3 exits: *Mat x3) -8/Materials -8/Garrison (discovered 4 exits: *Fac x3 / [*Mat]) -7/Factory -7/Garrison (discovered 2 exits: *Fac x2) -7/Factory -7/Garrison (discovered 3 exits: *Fac x3) -6/Factory -6/Garrison -5/Factory -5/Waste -5/Factory (discovered 2 exits: *Fac / Gar) -5/Garrison (discovered 3 exits: *Ext x3) -5/Extension (discovered 3 exits: *Fac x2 / *Cet) -5/Cetus -5/Archives (discovered 2 exits: *Hub x2) -5/Hub_04(d) -4/Factory -4/Garrison -4/Factory -4/Upper Caves History --------- Turn | Location | Event 4 | -11/Scrapyard | Discovered new exit (range 16) 140 | -11/Scrapyard | Entered Materials 306 | -10/Materials | Build established: Mutant 317 | -10/Materials | Discovered new exit (range 8) 317 | -10/Materials | Identified exit to Mines 728 | -10/Materials | Entered another Materials area 728 | -9/Materials | Evolved 2 slots: Propulsion x1, Utility x1 749 | -9/Materials | Build established: Scavenger-Mutant 999 | -9/Materials | Lost 3 parts (1p2n) 1000 | -9/Materials | Destroyed 8 combat bots 1174 | -9/Materials | Discovered new exit (range 4) 1185 | -9/Materials | Entered another Materials area 1185 | -8/Materials | Evolved 2 slots: Propulsion x1, Weapon x1 1627 | -8/Materials | Discovered new exit (range 16) 1687 | -8/Materials | Build established: Scavenger-Tank 1956 | -8/Materials | Garrison activated, responded to threat 2128 | -8/Materials | Identified exit to Garrison 2130 | -8/Materials | Entered Garrison 2207 | -8/Garrison | Garrison Relay disabled 2346 | -8/Garrison | Triggered checkpoint 2348 | -8/Garrison | Triggered checkpoint 2394 | -8/Garrison | Build established: Tank 2414 | -8/Garrison | Triggered checkpoint 2444 | -8/Garrison | Garrison Relay disabled 2493 | -8/Garrison | Discovered new exit (range 10) 2568 | -8/Garrison | Triggered checkpoint 2829 | -8/Garrison | Discovered new exit (range 11) 2840 | -8/Garrison | Learned Materials security intel 2872 | -8/Garrison | Triggered checkpoint 3125 | -8/Garrison | Discovered new exit (range 15) 3730 | -8/Garrison | Triggered checkpoint 3800 | -8/Garrison | Garrison Relay disabled 4018 | -8/Garrison | Build established: Scavenger-Gunner 4194 | -8/Garrison | Installed Relay Interface Framework 4320 | -8/Garrison | Entered Materials 4320 | -8/Materials | Accompanied by 6 allies 4430 | -8/Materials | Identified exit to Garrison 4432 | -8/Materials | Entered Garrison 4432 | -8/Garrison | Accompanied by 6 allies 4468 | -8/Garrison | Triggered checkpoint 4493 | -8/Garrison | Garrison Relay disabled 4539 | -8/Garrison | Rescued a captive Derelict 4540 | -8/Garrison | Rescued a captive Derelict 4650 | -8/Garrison | Core integrity fell below 50% 4800 | -8/Garrison | Triggered checkpoint 4892 | -8/Garrison | Triggered checkpoint 4935 | -8/Garrison | Garrison Relay disabled 5095 | -8/Garrison | Discovered new exit (range 13) 5220 | -8/Garrison | Triggered checkpoint 5252 | -8/Garrison | Garrison Relay disabled 5336 | -8/Garrison | Discovered new exit (range 14) 5464 | -8/Garrison | Triggered checkpoint 5526 | -8/Garrison | Triggered checkpoint 5558 | -8/Garrison | Discovered new exit (range 5) 5615 | -8/Garrison | Discovered new exit (range 14) 5701 | -8/Garrison | Build established: Scavenger-Mutant 5792 | -8/Garrison | Expanded RIF knowledge: Hotswap 5866 | -8/Garrison | Entered Factory 5866 | -7/Factory | Accompanied by 4 allies 5866 | -7/Factory | Evolved 2 slots: Utility x2 6080 | -7/Factory | Identified exit to Garrison 6081 | -7/Factory | Entered Garrison 6081 | -7/Garrison | Accompanied by 4 allies 6173 | -7/Garrison | Build established: Scavenger-Gunner 6235 | -7/Garrison | Triggered checkpoint 6301 | -7/Garrison | Triggered checkpoint 6354 | -7/Garrison | Phase Generator disabled 6365 | -7/Garrison | Discovered new exit (range 9) 6395 | -7/Garrison | Triggered checkpoint 6611 | -7/Garrison | Triggered checkpoint 6696 | -7/Garrison | Discovered new exit (range 13) 6767 | -7/Garrison | Triggered checkpoint 6952 | -7/Garrison | Expanded RIF knowledge: Robot Detection 7075 | -7/Garrison | Entered Factory 7374 | -7/Factory | Identified exit to Garrison 7376 | -7/Factory | Entered Garrison 7526 | -7/Garrison | Triggered checkpoint 7537 | -7/Garrison | Triggered checkpoint 7629 | -7/Garrison | Build established: Bothacker-Gunner 7731 | -7/Garrison | Discovered new exit (range 9) 7832 | -7/Garrison | Triggered checkpoint 7968 | -7/Garrison | Triggered checkpoint 8064 | -7/Garrison | Discovered new exit (range 12) 8082 | -7/Garrison | Triggered checkpoint 8408 | -7/Garrison | Triggered checkpoint 8410 | -7/Garrison | Core integrity fell below 50% 8480 | -7/Garrison | Spotted B-75 Beast 8499 | -7/Garrison | Destroyed B-75 Beast 8512 | -7/Garrison | Discovered new exit (range 12) 8526 | -7/Garrison | Triggered checkpoint 8927 | -7/Garrison | Expanded RIF knowledge: Patrol Navigation 8997 | -7/Garrison | Entered Factory 8997 | -6/Factory | Accompanied by 4 allies 8997 | -6/Factory | Evolved 2 slots: Utility x2 9063 | -6/Factory | Spotted B-75 Beast 9068 | -6/Factory | Build established: Scavenger-Gunner 9086 | -6/Factory | Destroyed B-75 Beast 9157 | -6/Factory | Fabricated M-13 Machinist (x1) 9212 | -6/Factory | Identified exit to Garrison 9214 | -6/Factory | Entered Garrison 9214 | -6/Garrison | Accompanied by 4 allies 9253 | -6/Garrison | Spotted B-75 Beast 9266 | -6/Garrison | Destroyed B-75 Beast 9312 | -6/Garrison | Expanded RIF knowledge: Structural Interface 9395 | -6/Garrison | Lost 3 allies 9630 | -6/Garrison | Triggered checkpoint 9634 | -6/Garrison | Triggered checkpoint 9703 | -6/Garrison | Discovered new exit (range 10) 9788 | -6/Garrison | Triggered checkpoint 9829 | -6/Garrison | Garrison Relay disabled 9908 | -6/Garrison | Entered Factory 9908 | -5/Factory | Evolved 2 slots: Utility x2 10299 | -5/Factory | Sucked down chute 10299 | -5/Factory | Entered Waste 10299 | -5/Waste | The area was eerily silent 10414 | -5/Waste | Build established: Bothacker-Gunner 10568 | -5/Waste | Discovered new exit (range 12) 10598 | -5/Waste | Entered Factory 10807 | -5/Factory | Fabricated M-13 Machinist (x1) 10873 | -5/Factory | Discovered new exit (range 5) 11036 | -5/Factory | Identified exit to Garrison 11037 | -5/Factory | Entered Garrison 11037 | -5/Garrison | Discovered recently destroyed garrison 11073 | -5/Garrison | Discovered new exit (range 60) 11073 | -5/Garrison | Discovered new exit (range 43) 11073 | -5/Garrison | Discovered new exit (range 66) 11258 | -5/Garrison | Expanded RIF knowledge: Zone Cloak 11278 | -5/Garrison | Entered Extension 11278 | -5/Extension | Accompanied by 2 allies 11367 | -5/Extension | Rescued A7 11468 | -5/Extension | Rescued a captive Derelict 11470 | -5/Extension | Rescued a captive Derelict 11535 | -5/Extension | Energy Cycler disabled 11535 | -5/Extension | Rescued a captive Derelict 11631 | -5/Extension | System corruption reached 10% 11652 | -5/Extension | Spotted B-75 Beast 11667 | -5/Extension | Assimilated Beast 6a with formatsys_high 11690 | -5/Extension | Spotted B-75 Beast 11707 | -5/Extension | Destroyed B-75 Beast 11716 | -5/Extension | Discovered new exit (range 15) 11718 | -5/Extension | Lost 4 allies 12137 | -5/Extension | Discovered new exit (range 10) 12139 | -5/Extension | Discovered new exit (range 6) 12176 | -5/Extension | Entered Cetus 12176 | -5/Cetus | Accompanied by 7 allies (A7) 12181 | -5/Cetus | Acquired a Cetus Manufacturing Module code from A7 12188 | -5/Cetus | Lost 3 allies 12197 | -5/Cetus | Spotted Cetus Guard 12197 | -5/Cetus | Spotted Cetus Guard 12201 | -5/Cetus | Destroyed Cetus Guard 12201 | -5/Cetus | Spotted Cetus Guard 12204 | -5/Cetus | Spotted Cetus Guard 12208 | -5/Cetus | Allies destroyed Cetus Guard 12211 | -5/Cetus | Allies destroyed Cetus Guard 12225 | -5/Cetus | Allies destroyed Cetus Guard 12360 | -5/Cetus | Escorted A7 to Cetus Mainframe 12454 | -5/Cetus | Discovered new exit (range 16) 12464 | -5/Cetus | Build established: Scavenger-Gunner 12483 | -5/Cetus | Entered Archives 12483 | -5/Archives | Accompanied by 6 allies (A7) 12488 | -5/Archives | Received a hacking code to weaken MAIN.C 12556 | -5/Archives | Lost 4 allies 12558 | -5/Archives | Discovered new exit (range 16) 12579 | -5/Archives | Discovered new exit (range 16) 12700 | -5/Archives | Entered Hub_04(d) 12700 | -5/Hub_04(d) | Accompanied by 1 ally 13151 | -5/Hub_04(d) | Lost 3 allies 13178 | -5/Hub_04(d) | Lost 4 parts (3u1w) 13297 | -5/Hub_04(d) | Spotted B-75 Beast 13328 | -5/Hub_04(d) | Destroyed B-75 Beast 13357 | -5/Hub_04(d) | Lost 3 parts (1n2w) 13440 | -5/Hub_04(d) | Core integrity fell below 50% 13447 | -5/Hub_04(d) | Lost 11 parts (1p4n4u2w) 13530 | -5/Hub_04(d) | Discovered new exit (range 8) 13541 | -5/Hub_04(d) | Entered Factory 13541 | -4/Factory | Evolved 2 slots: Utility x2 13605 | -4/Factory | Build established: Scavenger-Mutant 13806 | -4/Factory | Identified exit to Garrison 13808 | -4/Factory | Entered Garrison 13898 | -4/Garrison | Triggered checkpoint 13915 | -4/Garrison | Lost 4 parts (1p1n2w) 13970 | -4/Garrison | Garrison Relay disabled 13992 | -4/Garrison | System corruption reached 10% 14028 | -4/Garrison | Lost 3 parts (1n2u) 14214 | -4/Garrison | Triggered checkpoint 14281 | -4/Garrison | Expanded RIF knowledge: Coupler Efficiency 14293 | -4/Garrison | Discovered new exit (range 12) 14310 | -4/Garrison | Identified exit to Factory 14313 | -4/Garrison | Entered Factory 14501 | -4/Factory | Spotted B-86 Titan 14618 | -4/Factory | Destroyed B-86 Titan 14658 | -4/Factory | Lost 4 parts (1n3w) 14870 | -4/Factory | Core integrity fell below 50% 14908 | -4/Factory | Core integrity fell below 20% 15004 | -4/Factory | Discovered new exit (range 8) 15007 | -4/Factory | Identified exit to Upper Caves 15015 | -4/Factory | Entered Upper Caves 15174 | -4/Upper Caves | Destroyed by P-70 Sage with High-powered Shock Rifle Last Messages --------------- 14990_ Dropped Gravmag Array. 14991_ Connecting with Terminal... 15004_ EXIT=FOUND 15007_ EXIT=IDENTIFIED: UPPER CAVES LOCATION=UPPER CAVES GOAL=ESCAPE 15018_ Searching scrap... 15018_ Found Imp. Arc Projector. 15018_ Found Flamer. 15018_ Found Imp. Field Recycling Unit. 15018_ Found Adv. Thermal Shield. 15018_ Found 66 Matter. 15019_ Acquired 66 matter. 15020_ System corrupted: Matter fused (-8). 15053_ RIF reveals location of hidden door. 15055_ 3TIG4K DKUQML42HC:C==< R9EJAAW 15071_ System corrupted: Heat flow error (+180). 15109_ PKE0CJ8NNRB59WX POPJ4TU1%&4M 15128_ System corrupted: Matter fused (-7). 15150_ System corrupted: Energy discharge (-40). Map ----- +----------------------------------------------------+ | ?????????????????????????????????????????????# # | | ?????????????????????????????????????????????# | | ?????????????????????????????????????????????## | | ??????????????????????????????????????????##?## | | ?????????????????????????????????????????## ## | | ?????????????????????????????????????????# | | ?????????????????????????????????????????# | | ?????????????????????????????????????????## ### | | ??????????????????????????????????????????###??## | | ?????????????????????????????????????????##?????# | | ????????????????????????????????????????## ###### | | ????????????????????????????????????????# | | ????????????????????????????????????????# | | ????????????????????????????????????????# | | ????????????????????????????????????????## | | ?????????????????????????????????????????## # | | ??????????????????????????????????????????## # | | ??????????????????????????????????????????## | | ????????????????????????????????????####### | | ???????????????????????????????????## # | | ??????????????????????????????????## ## | | ?????????????????????????????????## ## | | ???????? ????????????????????????# # | | ???? ??????????????????# ## # | | ???????# ############## ### ###### | | ????????# @ ## ## #??# | | ????????# ## ##??# | | ????????# ######### ### ##???## | | ????????## ??????????# #?#### ####????# | | ?????????# p ?????????##### #????##????????# | | ?????????# ????????????# # ##???????####??# | | ??????? ??????????????# ##??????# ##?## | | ?????? ????????????###### ####??## #?# | | ????????????????? ??# ## #?## #?## | | ????????????????? ?# ### ### #### | | ????????????????? #### #### ##### ## | | ????????????????? ???##### #???# | | ??????????????###? ??????## ##???## | | ??????????????? ??????# #?????## | | ??????????????? ?????# ##?????## | | ???????????????? ?????# #??????# | | ????????????????? ?????# #?????## | | ?????????????????# #????# ##???## | | ?????????????????# ##??## ##### ## | | ?????????????????? ##??# ## | | ??????????????????? #### ## | | ???????????????????? ## #### | | ????????????????????# ## ####???# | | ????????????????????# ## ### ###??????? | | ????????????????????# #######??# # ##????????? | +----------------------------------------------------+ Best States ------------- Heat Dissipation 62 Energy Generation 25 Energy Capacity 350 Matter Stores 300 Matter Capacity 300 Sight Range 22 Robot Scan Range 18 Terrain Scan Density 10 Armor Coverage 825 Evasion (%) 62 Targeting Accuracy 24 Melee Accuracy 14 Target Analysis 8 Core Analysis 9 Recoil Reduction 4 Relay Coupler Types 2 Relay Coupler Value 81 Authchip Count 3 Item Schematics ----------------- Hcp. Storage Unit | -10/Materials | Hacked Robot Schematics ------------------ M-13 Machinist | -10/Materials | Hacked Fabricated ------------ M-13 Machinist | x1 | -6/Factory | Authchip M-13 Machinist | x1 | -5/Factory | Authchip Repaired ---------- Nothing Studied --------- None Alien Tech Used ----------------- None Achievements -------------- Giant Slayer Challenges ------------ None Game ------ Seed ConcussiveMissileExpander Manual? 0 Play Time 01:28:44 Cumulative 280.8 hours Start 2025.11.13 @ 22:10:38 End 2025.11.13 @ 23:48:10 Sessions 1 Manual Loads 0 Difficulty Rogue Special Mode None Game No. 602 Rogue 602 Adventurer 0 Explorer 0 Win Type - Total 20 Types 14/0/4/1/1/0/0/0/0/0 Lore% 80 Gallery% 72 Achievement% 50 Wizard Run 0 Options --------- Layout 0 ASCII 0 Keyboard 0 Movement Numpad Keybinds 0 Fullscreen 2 Font 18/Terminus Map View 76x50 Zoom Use 0% Tactical HUD 1 Map Filters NONE Filters SATURATION(100) Steam 1 RUN: 92561a98-df12-4657-bcc9-2ef6b70e187e